Cogmind - Beta 13 @@@ ROGUE MODE // 2024.05.05 @ 15:03:49 Player: Conlarando Result: Destroyed by as-02229 with Assembled Heavy Rifle Performance ------------- Evolutions (0) 0 Regions Visited (2) 400 Robots Destroyed (23) 115 Value Destroyed (422) 422 Prototype IDs (0) 0 Alien Tech Used (0) 0 Bonus (0) 0 TOTAL SCORE: 937 Bonus ------- None Cogmind --------- Core Integrity 0/250 Matter 200/300 Energy 139/160 System Corruption 7% Temperature Cool (0) Movement Core (850) Ox16 Location -10/Mines Parts ------- > --- POWER (1) -------- Light Nuclear Core > --- PROPULSION (2) --- (None) > --- UTILITY (2) ------ Heat Sink High-capacity Storage Unit > --- WEAPON (2) ------- Assault Rifle Assault Rifle > --- INVENTORY (20) --- Light Ion Engine Light Ion Engine Small Storage Unit Medium Storage Unit Signal Interpreter Signal Interpreter ECM Suite Propulsion Shielding Hacking Suite Hacking Suite Assault Rifle Assault Rifle Hammer Peak State ------------ > --- POWER ------------ Light Nuclear Core > --- PROPULSION ------- Light Treads > --- UTILITY ---------- High-capacity Storage Unit Targeting Computer > --- WEAPON ----------- Assault Rifle Assault Rifle > --- INVENTORY -------- Light Ion Engine Light Ion Engine Heat Sink Small Storage Unit Medium Storage Unit Signal Interpreter Signal Interpreter ECM Suite Propulsion Shielding Hacking Suite Hacking Suite Assault Rifle Assault Rifle Assault Rifle Assault Rifle Hammer [Rating: 10] Favorites ----------- Power Ion Engine Engine Ion Engine Power Core Light Nuclear Core Propulsion Light Treads Treads Light Treads Utility High-capacity Storage Unit Device Heat Sink Storage High-capacity Storage Unit Processor Targeting Computer Weapon Light Assault Rifle Energy Gun EM Pulse Gun Ballistic Gun Light Assault Rifle Ballistic Cannon Light Cannon Launcher Grenade Launcher Build | -11 -10 -10 ------- Run | Yrd Mat Min Slots Evolved . | . . . Power . | . . . Propulsion . | . . . Utility . | . . . Weapon . | . . . Parts Attached 31 | 6 16 9 Power 3 | 1 1 1 Engine 2 | 1 1 . Core 1 | . . 1 Reactor . | . . . Propulsion 6 | 2 3 1 Treads 6 | 2 3 1 Leg . | . . . Wheel . | . . . Hover . | . . . Flight . | . . . Utility 6 | 1 4 1 Device 2 | . 1 1 Storage 3 | 1 2 . Processor 1 | . 1 . Hackware . | . . . Protection . | . . . Artifact . | . . . Weapon 16 | 2 8 6 Energy Gun 2 | 2 . . Energy Cannon . | . . . Ballistic Gun 9 | . 5 4 Ballistic Cannon 3 | . 3 . Launcher 2 | . . 2 Special Weapon . | . . . Impact Weapon . | . . . Slashing Weapon . | . . . Piercing Weapon . | . . . Special Melee Weapon . | . . . Unidentified Prototypes . | . . . Parts Lost 9 | . . 9 Power 1 | . . 1 Propulsion 3 | . . 3 Utility 1 | . . 1 Weapon 4 | . . 4 Highest Loss Streak 9 | . . 9 To Critical Strikes 1 | . . 1 Average Slot Usage (%) 97 | . 98 80 Engine 13 | . 14 7 Treads 27 | . 27 20 Device 2 | . 2 . Storage 14 | . 14 14 Processor 9 | . 9 12 Energy Gun 4 | . 4 . Ballistic Gun 16 | . 17 12 Ballistic Cannon 6 | . 6 . Naked Turns . | . . . Heaviest Build 51 | 14 50 51 Greatest Support 40 | 40 40 40 Greatest Overweight (x) 1 | . 1 1 Average Overweight (x) . | . . . Largest Inventory Capacity 20 | 8 20 20 Average Capacity 17 | 6 18 20 Most Carried 20 | 2 20 20 Average Carried 11 | . 12 18 Final Capacity 20 | 8 20 20 Final Carried 20 | 2 20 13 Class Distribution -------------------- 100% | Mutant Dominant Class ---------------- Mutant | -10/Materials Mutant | -10/Mines Resources | -11 -10 -10 ----------- Run | Yrd Mat Min Matter Collected 646 | 176 446 24 Remotely . | . . . Salvage Created 693 | . 674 19 Parts 47 | . 47 . Haulers Intercepted 2 | . 2 . Recyclers Shooed 1 | . 1 . Parts Field Recycled . | . . . Retrieved Matter . | . . . Parts Self-Destructed . | . . . Prevented . | . . . Kills | -11 -10 -10 ------- Run | Yrd Mat Min Combat Hostiles Destroyed 13 | . 12 1 Guns 10 | . 9 1 Cannons 3 | . 3 . Classes Destroyed 9 | . 8 1 Worker 2 | . 2 . Builder 1 | . 1 . Hauler 2 | . 2 . Recycler 1 | . 1 . Operator 3 | . 3 . Watcher 2 | . 2 . Swarmer 4 | . 4 . Grunt 8 | . 8 . Assembled 1 | . . 1 Best Kill Streak 5 | . 5 1 Combat Bots Only 5 | . 5 1 Max Kills in Single Turn 2 | . 2 1 Gunslinging . | . . . Exploded . | . . . Melee . | . . . Uniques/NPCs Destroyed . | . . . Combat | -11 -10 -10 -------- Run | Yrd Mat Min Hostile Shots Fired 74 | . 47 27 Missed 21 | . 14 7 Damage Taken 1215 | . 385 830 Core 254 | . 85 169 Absorbed by Shields . | . . . Core Remaining (%) 100 | 100 . . Volleys Fired 77 | . 70 7 Largest 2 | . 2 2 Hottest 80 | . 80 60 Shots Fired 150 | . 136 14 Gun 135 | . 123 12 Cannon 13 | . 13 . Launcher 2 | . . 2 Special . | . . . Kinetic 114 | . 102 12 Thermal . | . . . Explosive 2 | . . 2 Electromagnetic 34 | . 34 . Robot Hit Streak 13 | . 13 3 Robot Miss Streak 5 | . 5 2 Penetration Max . | . . . Secondary Targets 2 | . 1 1 Max Gunslinging Chain 1 | . 1 1 Shots Hit Robots 93 | . 86 7 Core Hits 45 | . 37 8 Critical Kills . | . . . Critical Parts Destroyed 3 | . 2 1 Critical Strikes 4 | . 3 1 Destroy 3 | . 2 1 Corrupt 1 | . 1 . Melee Attacks . | . . . Impact . | . . . Slashing . | . . . Piercing . | . . . Sneak Attacks . | . . . Combat Hostiles . | . . . Follow-up Attacks . | . . . Damage Inflicted 1146 | . 1046 100 Guns 952 | . 888 64 Cannons 157 | . 157 . Explosions 36 | . . 36 Melee . | . . . Ramming 1 | . 1 . Kinetic 750 | . 686 64 Thermal . | . . . Explosive 36 | . . 36 Electromagnetic 359 | . 359 . Impact . | . . . Slashing . | . . . Piercing . | . . . Highest Corruption 7 | . . 7 Average Corruption 7 | . . 7 Corruption Purged . | . . . Corruption Blocked . | . . . Effects 1 | . . 1 Matter Fused 1 | . . 1 Overload Shots . | . . . Overflow Damage 14 | . 14 . Projectiles 14 | . 14 . Explosions . | . . . Melee . | . . . Knockbacks 1 | . 1 . Impact . | . . . Kinetic 1 | . 1 . Secondary . | . . . Self-Inflicted Damage . | . . . Shots . | . . . Rammed 2 | . 2 . Targets Rammed 3 | . 3 . Kicked . | . . . Crushed 1 | . 1 . Highest Temperature 114 | . 114 . Average Temperature 32 | . 32 . Received Heat Transfer 117 | . 117 . Siege Activations . | . . . Robots Corrupted . | . . . Combat Hostiles . | . . . Parts Fried 2 | . 2 . Impact Corruptions . | . . . Robots Melted . | . . . Combat Hostiles . | . . . Parts Melted . | . . . Heat Transferred . | . . . Parts Sabotaged . | . . . Parts Stolen . | . . . Parts Stripped . | . . . Power Chain Reactions . | . . . Alert | -11 -10 -10 ------- Run | Yrd Mat Min Peak Influence 225 | . 225 15 Initial . | . . . Average 43 | . 47 . Maximum Alert Level 1 | . 1 . Low Security (%) 94 | 100 94 100 Level 1 5 | . 5 . Level 2 . | . . . Level 3 . | . . . Level 4 . | . . . Level 5 . | . . . High Security . | . . . Max Security . | . . . Squads Dispatched 4 | . 4 . Investigation 1 | . 1 . Extermination . | . . . Reinforcement 3 | . 3 . Assault . | . . . Garrison . | . . . Intercept . | . . . Searches Triggered . | . . . Construction Impeded . | . . . Haulers Reinforced . | . . . Active Scanning Responses . | . . . Cargo Convoy Interrupts . | . . . Stealth | -11 -10 -10 --------- Run | Yrd Mat Min Distress Signals 1 | . 1 . Communications Jammed . | . . . Distress Signals . | . . . Times Spotted 41 | . 29 12 Peak Tracking Total 10 | . 5 10 Tactical Retreats . | . . . Traps | -11 -10 -10 ------- Run | Yrd Mat Min Traps Triggered 3 | . 3 . Indirectly . | . . . Trap Hack Attempts . | . . . Triggered . | . . . Disarmed . | . . . Reprogrammed . | . . . Reused . | . . . Traps Extracted . | . . . Installed . | . . . Triggered . | . . . Machines | -11 -10 -10 ---------- Run | Yrd Mat Min Machines Disabled . | . . . Max in Single Turn . | . . . Machines Repaired . | . . . Machines Dismantled . | . . . Machines Sabotaged . | . . . Overloaded Fab Kills . | . . . Hacking | -11 -10 -10 --------- Run | Yrd Mat Min Machines Accessed 4 | . 4 . Terminals 1 | . 1 . Fabricators . | . . . Repair Stations 1 | . 1 . Recycling Units 2 | . 2 . Scanalyzers . | . . . Garrison Access . | . . . Total Hacks 11 | . 11 . Successful 5 | . 5 . Failed 6 | . 6 . Catastrophic 2 | . 2 . Database Lockouts . | . . . Manual 2 | . 2 . Terminals 3 | . 3 . Fabricators . | . . . Repair Stations 5 | . 5 . Recycling Units 3 | . 3 . Scanalyzers . | . . . Garrison Access . | . . . Terminal Hacks 3 | . 3 . Hauler Manifests 1 | . 1 . Registered Components 1 | . 1 . Zone Layout 1 | . 1 . Fabricator Hacks . | . . . Repair Station Hacks 1 | . 1 . Scan Component 1 | . 1 . Recycling Unit Hacks 1 | . 1 . Report Inventory 1 | . 1 . Scanalyzer . | . . . Garrison Access Hacks . | . . . Unauthorized Hacks . | . . . Terminals . | . . . Fabricators . | . . . Repair Stations . | . . . Recycling Units . | . . . Scanalyzers . | . . . Garrison Access . | . . . Data Cores Recovered . | . . . Used . | . . . Hacking Detections 2 | . 2 . Full Trace Events 2 | . 2 . Feedback Events . | . . . Feedback Blocked . | . . . Robot Schematics Acquired . | . . . Robots Built . | . . . Authchips . | . . . Time . | . . . Total Robot Build Rating . | . . . Part Schematics Acquired . | . . . Parts Built . | . . . Authchips . | . . . Time . | . . . Total Part Build Rating . | . . . Parts Repaired . | . . . Time . | . . . Parts Recycled . | . . . Recycled Matter . | . . . Retrieved Matter . | . . . Retrieved Components . | . . . Parts Scanalyzed . | . . . Part Schematics Acquired . | . . . Parts Damaged . | . . . Bothacking | -11 -10 -10 ------------ Run | Yrd Mat Min Used RIF Installer . | . . . Robots Hacked . | . . . Non-combat . | . . . Combat . | . . . Robot Hacks Applied . | . . . Relay Couplers Released . | . . . Fabnet Peak Effective % . | . . . Robots Rewired . | . . . Allies Hacked . | . . . Hacks Repelled . | . . . Allies | -11 -10 -10 -------- Run | Yrd Mat Min Total Allies . | . . . Largest Group . | . . . Highest-Rated Group . | . . . Highest-Rated Ally . | . . . Total Orders . | . . . Ally Attacks . | . . . Total Damage . | . . . Kills . | . . . Allies Corrupted . | . . . Allies Melted . | . . . Intel | -11 -10 -10 ------- Run | Yrd Mat Min Robot Analysis Total . | . . . Derelict Logs Recovered . | . . . Drone Launches . | . . . Drone Recoveries . | . . . Exploration | -11 -10 -10 ------------- Run | Yrd Mat Min Turns Passed 2350 | 75 2193 82 Spaces Moved 914 | 46 846 22 Core 8 | 8 . . Treads 906 | 38 846 22 Legs . | . . . Wheels . | . . . Hover . | . . . Flight . | . . . Fastest Speed 50 | 50 160 160 Average Speed 211 | 140 214 236 Slowest Speed 240 | 160 240 240 Overloaded Moves . | . . . Propulsion Burnouts . | . . . Robots Hopped . | . . . Cave-ins Triggered 1 | . . 1 Exploration Rate (%) 38 | 4 95 16 Regions Visited 2 Branch Regions 1 Pre-discovered Areas . | . . . Known Exits Taken . | . . . Unknown Exits Taken 2 | 1 1 . Scrap Searched 1 | . . 1 Spaces Dug . | . . . Terrain Destroyed 8 | . . 8 Melee . | . . . Projectile . | . . . AOE 8 | . . 8 Terrain Rammed . | . . . Walls Destroyed . | . . . Machines Disabled . | . . . Actions | -11 -10 -10 --------- Run | Yrd Mat Min Total 1193 | 53 1100 40 Wait 123 | . 123 . Move 912 | 45 845 22 Hop . | . . . Pick Up 31 | 2 28 1 Fast Attach 14 | 6 8 . Attach 11 | . 4 7 Detach 1 | . 1 . Swap 6 | . 4 2 Drop 15 | . 14 1 Fire 77 | . 70 7 Melee . | . . . Ram . | . . . Kick . | . . . Crush 3 | . 3 . Escape Stasis . | . . . Rewire . | . . . Trap . | . . . Miscellaneous . | . . . Route ------- -11/Scrapyard -10/Materials (discovered 6 exits: [*Mat x3] / [*Min x2] / [*Sub]) -10/Mines History --------- Turn | Location | Event 9 | -11/Scrapyard | Discovered new exit (range 14) 76 | -11/Scrapyard | Entered Materials 313 | -10/Materials | Build established: Mutant 345 | -10/Materials | Discovered new exit (range 8) 469 | -10/Materials | Discovered new exit (range 8) 723 | -10/Materials | Discovered new exit (range 3) 1198 | -10/Materials | Discovered new exit (range 6) 1508 | -10/Materials | Discovered new exit (range 9) 1698 | -10/Materials | Discovered new exit (range 16) 2269 | -10/Materials | Entered Mines 2280 | -10/Mines | Assembled infested the area 2324 | -10/Mines | Core integrity fell below 50% 2340 | -10/Mines | Core integrity fell below 20% 2346 | -10/Mines | Crushed by falling debris 2351 | -10/Mines | Destroyed by as-02229 with Assembled Heavy Rifle Last Messages --------------- 02340_ U-05 Engineer lays Concrete. 02341_ The unstable cave ceiling collapses. 02341_ U-05 Engineer builds a Wall. 02344_ The unstable cave ceiling collapses. 02345_ as-69468 suffers critical hit (Destroy). 02345_ Destroyed Asb. Hover Unit. 02346_ The unstable cave ceiling collapses. 02346_ Crushed by falling debris. 02346_ Targeting Computer destroyed. 02346_ System corrupted by crushing effect (+1). 02346_ Assault Rifle destroyed. 02346_ System corrupted by crushing effect (+4). 02346_ Assault Rifle destroyed. 02346_ System corrupted by crushing effect (+2). 02346_ U-05 Engineer builds a Wall. 02346_ U-05 Engineer lays Concrete. 02347_ as-69468 destroyed. 02347_ U-05 Engineer lays Concrete. 02349_ U-05 Engineer builds a Wall. 02351_ System corrupted: Matter fused (-6). Map ----- +----------------------------------------------------+ | ??????????????????????????????????????????? | | ??????????????????????????????????????????? | | ??????????????????????????????????????????? | | ??????????????????????????????????????????? | | ??????????????????????????????????????????? | | ??????????????????????????????????????????? | | ???# ""??????????????????????????????????? | | ???# """??????????????? ????????????????? | | ???# """?????????????? ???????????????? | | ????# ????????????? ????????????? | | ????# #???????????? ? ????????????? | | ????# #??????????? ? #????????????? | | ????? ###???????? ? ##???????????? | | ???????# ##??????? #? ????????????? | | ????????# ##????###u # #????????????? | | ????????# #?#### # #????????????? | | ????????## #?# a#????????????? | | ?????????### ### %%#????????????? | | ???????????## ### #????????????? | | ????????????# ### % # #????????????? | | ????????????# ## ## #????????????? | | ????????????# ## #?????????????? | | ????????????# # % #?????????????? | | ?????# # % #?????????????? | | ??????# ! #?????????????? | | ??????# ] @# #?????????????? | | ??????# ! ##?????????????? | | ??????# #??????????????? | | ??????## #??????????????? | | ???????###### # ##??????????????? | | ????????????## u# #######???????????????? | | ????????????# # ??????????????????????? | | ????????????# # #??????????????????????? | | ????????????## ##???????????????????????? | | ????????????? #????????????????????????? | | ????????????? ????????????????????????? | | ????????????### ????????????????????????? | | ?????????????? ????????????????????????? | | ??????????????? ????????????????????????? | | ??????????????? ?????????????????????????? | | ??????????????????????????????????????????? | | ??????????????????????????????????????????? | | ??????????????????????????????????????????? | | ??????????????????????????????????????????? | | ??????????????????????????????????????????? | | ??????????????????????????????????????????? | | ??????????????????????????????????????????? | | ??????????????????????????????????????????? | | ??????????????????????????????????????????? | | ??????????????????????????????????????????? | +----------------------------------------------------+ Best States ------------- Heat Dissipation 35 Energy Generation 14 Energy Capacity 250 Matter Stores 300 Matter Capacity 300 Sight Range 16 Terrain Scan Density 10 Evasion (%) 40 Targeting Accuracy 5 Recoil Reduction 2 Item Schematics ----------------- None Robot Schematics ------------------ None Fabricated ------------ Nothing Alien Tech Used ----------------- None Achievements -------------- None Challenges ------------ None Game ------ Seed SwarmNeutronRailgun Manual? 0 Play Time 00:19:00 Cumulative 18.4 hours Start 2024.05.05 @ 14:44:53 End 2024.05.05 @ 15:03:49 Sessions 1 Manual Loads 0 Difficulty Rogue Special Mode None Game No. 27 Rogue 27 Adventurer 0 Explorer 0 Win Type - Total 0 Types 0/0/0/0/0/0/0/0/0 Lore% 7 Gallery% 24 Achievement% 25 Wizard Run 0 Options --------- Layout 1 ASCII 0 Keyboard 0 Movement Mouse Keybinds 0 Fullscreen 1 Font 24/Terminus Map View 50x35 Zoom Use 0% Tactical HUD 1 Map Filters NONE Filters NONE Steam 1 RUN: 91e88c53-8098-409c-ab06-6c3e74814861